bitfinex/quotes_ETHUSD_20241231
["timestamp","ask_amount","ask_price","bid_price","bid_amount"]
[1735610656238,0.7724,3347.5,3347.0,2.98774]
[1735610656603,0.1555798,3348.2,3347.1,2.98765]
[1735610656805,0.7724,3348.1,3347.2,3.31611799]
[1735610658107,0.7724,3348.1,3347.2,0.32863799]
[1735610658302,0.7724,3348.1,3347.4,2.98738]
[1735610658507,0.7724,3348.1,3347.7,2.9871]
[1735610658740,0.15556436,3348.6,3347.7,2.9871]
[1735610658741,0.7724,3348.5,3347.8,0.02986719]
[1735610659230,0.7724,3348.5,3347.7,2.9871]
[1735610662061,0.7724,3348.5,3347.5,3.0]
[1735610662214,0.8309,3348.3,3347.0,7.3116]
[1735610662419,0.8309,3348.2,3347.0,7.3116]
[1735610662617,0.8309,3348.1,3347.0,9.48773]
[1735610663017,0.8309,3348.1,3347.0,2.98773]
[1735610663223,0.8309,3347.9,3347.0,2.98773]
[1735610663436,0.8309,3347.9,3346.7,6.5]
[1735610663647,0.8309,3347.6,3346.7,6.5]
[1735610664238,0.8309,3347.6,3346.4,0.8116]
[1735610664682,0.8309,3347.6,3346.4,3.8116]
[1735610664882,1.51943463,3347.6,3346.6,2.98809]
[1735610665540,0.8309,3347.5,3346.6,2.98809]
[1735610666564,0.8309,3347.5,3346.1,3.8116]
[1735610666779,0.8309,3347.5,3346.7,2.98798]
[1735610669029,0.8309,3347.5,3346.4,5.98819]
[1735610669229,0.8309,3347.5,3346.4,3.0]
[1735610669425,1.18660882,3347.5,3346.7,2.98799]
[1735610669965,0.8309,3347.4,3346.6,3.0]
[1735610670171,0.8309,3347.4,3346.6,5.98809]
[1735610670684,0.8309,3347.4,3346.3,2.98828]
[1735610670827,0.8309,3347.3,3346.3,2.98828]
[1735610671136,0.8309,3347.3,3346.4,3.0]
[1735610671351,0.8309,3347.1,3346.4,3.0]
[1735610671550,0.8309,3347.1,3346.0,8.71475823]
[1735610671749,0.8309,3347.1,3346.4,2.98823]
[1735610672051,0.8309,3347.1,3346.5,3.0]
[1735610672513,0.8309,3347.1,3346.3,5.72618823]
[1735610672781,0.8309,3347.1,3346.4,0.57261882]
[1735610672975,0.8309,3347.1,3346.2,2.98845]
[1735610673674,2.98769,3347.1,3346.0,2.98862]
[1735610673835,0.8309,3346.8,3345.9,6.5]
[1735610674240,0.8309,3346.8,3345.8,2.9888]
[1735610674475,0.8309,3346.7,3345.9,2.9887]
[1735610674650,0.8309,3346.7,3346.2,2.98839]
[1735610677286,0.8309,3346.7,3345.9,2.98873]
[1735610677528,0.8309,3346.7,3346.2,2.98837]
[1735610678544,0.8309,3346.7,3345.8,5.98881]
[1735610680571,0.8309,3346.7,3345.8,2.98881]
[1735610681794,0.8309,3346.7,3345.6,5.98898]
[1735610682292,0.8309,3346.7,3345.7,2.9889]
[1735610685235,0.8309,3346.7,3345.9,2.98871]
[1735610685374,0.8309,3346.7,3346.0,3.31737225]
[1735610685575,0.8309,3346.7,3346.0,3.01850125]
[1735610685846,0.8309,3346.7,3346.0,2.98862]
[1735610686005,0.8309,3346.7,3346.3,2.98832]
[1735610686211,0.7927,3347.3,3346.1,2.72618823]
[1735610686400,0.7927,3347.3,3346.7,2.98801]
[1735610686925,0.7927,3347.3,3346.5,0.02987816]
[1735610687084,0.7927,3347.3,3347.0,2.98767]
[1735610687774,0.7927,3347.3,3346.6,6.85294664]
[1735610687951,0.7927,3347.3,3346.9,2.98783]
[1735610689535,0.7927,3347.3,3346.6,0.35294664]
[1735610689780,0.7927,3347.3,3346.8,2.98791]
[1735610692550,0.7927,3347.3,3346.6,3.34096664]
[1735610693244,0.7927,3347.3,3346.6,2.98802]
[1735610693445,0.7927,3347.3,3346.4,2.9882]
[1735610696210,0.55,3347.2,3346.1,6.5]
[1735610696369,0.7711,3346.8,3346.1,6.5]
[1735610696952,0.7711,3346.8,3346.1,9.48852]
[1735610697208,0.7711,3346.8,3346.1,2.98852]
[1735610697652,0.7711,3346.8,3345.9,2.9887]
[1735610698510,0.7711,3346.7,3345.9,2.9887]
[1735610699025,0.7711,3346.7,3345.7,2.98891]
[1735610699201,0.7711,3346.7,3346.0,2.98861]
[1735610700082,0.7711,3346.7,3345.8,2.9888]
[1735610700255,0.375894,3346.6,3345.8,2.9888]
[1735610700455,0.7711,3346.5,3345.8,2.9888]
[1735610701006,0.7711,3346.5,3345.9,2.98869]
[1735610701351,0.7711,3346.5,3345.4,7.2831]
[1735610701555,0.7711,3346.1,3345.4,6.5]
[1735610701791,0.7711,3345.9,3345.4,6.5]
[1735610702057,0.7711,3345.7,3345.2,1.24434682]
[1735610702505,0.7711,3345.5,3345.2,1.24434682]
[1735610703094,0.7711,3345.5,3344.3,5.99015]
[1735610703504,3.76025,3345.5,3344.3,5.99015]
[1735610703703,2.98921,3345.4,3344.3,2.99015]
[1735610703896,0.7711,3345.3,3344.3,2.99015]
[1735610704507,0.7711,3345.3,3344.4,2.99006]
[1735610705868,0.7711,3345.3,3344.2,3.0]
[1735610706063,0.7786,3345.1,3344.1,0.7831]
[1735610706667,0.7786,3345.1,3344.2,2.99016]
[1735610709611,2.98946,3345.1,3343.9,5.99047]
[1735610709815,0.7786,3344.9,3343.9,5.99047]
[1735610710157,1.42802482,3344.9,3343.9,5.99047]
[1735610710344,0.64942482,3344.9,3343.9,5.99047]
[1735610710539,0.7786,3344.8,3343.6,2.99074]
[1735610710821,3.50478823,3344.7,3343.6,2.99074]
[1735610711109,0.71440031,3344.6,3343.6,2.99074]
[1735610711516,0.7786,3344.5,3343.6,2.99074]
[1735610711740,0.7786,3344.3,3343.2,6.5]
[1735610712095,0.7786,3344.3,3343.2,3.0]
[1735610712294,0.7786,3344.0,3342.9,6.5]
[1735610712492,2.72618823,3343.8,3342.9,6.5]
[1735610712696,0.7786,3343.7,3342.9,6.5]
[1735610713107,0.7786,3343.7,3342.6,2.99164]
[1735610713421,0.7786,3343.7,3342.4,2.99186]
[1735610713585,0.7786,3343.7,3342.6,2.99166]
[1735610714072,0.7786,3343.7,3342.3,0.000958]
[1735610714688,0.7786,3343.7,3342.6,2.99167]
[1735610715400,0.7786,3343.7,3342.7,2.99157]
[1735610715603,0.7786,3343.7,3342.9,2.99138]
[1735610718564,0.7786,3343.7,3342.9,3.0]
[1735610718730,0.7786,3344.5,3343.1,3.0]
[1735610718935,0.7786,3344.5,3343.8,2.9906]
[1735610719337,0.7786,3344.5,3343.5,2.99079]
[1735610719663,0.7786,3344.5,3343.5,2.99082]
[1735610719855,0.7786,3344.5,3343.6,2.99078]
[1735610720781,0.7786,3344.5,3343.2,2.99114]
[1735610720953,0.7964,3344.3,3343.5,2.99085]
[1735610721320,0.7964,3344.3,3343.0,0.7973]
[1735610722033,0.7964,3344.2,3342.8,3.0]
[1735610722392,0.7964,3344.2,3343.1,2.99118]
[1735610722588,0.75279581,3344.1,3343.1,2.99118]
[1735610722881,0.7964,3344.0,3343.1,2.99118]
[1735610723583,0.7964,3344.0,3342.7,3.50798823]
[1735610723887,0.7964,3343.8,3342.8,2.99143]
[1735610724740,0.7964,3343.8,3343.0,2.99131]
[1735610726377,0.7964,3343.8,3342.5,6.5]
[1735610726378,0.7964,3343.8,3342.7,2.72618823]
[1735610726548,0.7964,3343.8,3342.8,2.9915]
[1735610726751,0.7964,3343.8,3342.8,4.21326882]
[1735610726951,0.7964,3343.8,3342.6,3.0]
[1735610727248,0.7964,3343.8,3342.8,2.99145]
[1735610728679,3.0,3343.8,3342.6,2.99163]
[1735610728981,0.7634,3343.7,3342.8,2.99148]
[1735610729198,0.7634,3343.6,3342.8,2.99148]
[1735610730711,0.7634,3343.6,3342.9,2.9914]
[1735610732101,0.7634,3343.6,3342.4,12.99977823]
[1735610732298,0.7634,3343.6,3342.7,2.99158]
[1735610732501,1.45435159,3343.6,3342.9,2.99137]
[1735610732857,0.7634,3343.6,3342.9,2.99137]
[1735610733006,0.7634,3343.6,3342.4,3.50798823]
[1735610733179,0.7634,3343.6,3342.8,2.99147]
[1735610733379,0.7634,3343.6,3342.5,2.99177]
[1735610733584,0.7634,3343.6,3342.8,2.99141]
[1735610734795,0.7634,3343.4,3342.8,2.99141]
[1735610735182,0.7634,3343.4,3342.3,3.000958]
[1735610735495,0.7634,3343.4,3342.9,2.99137]
[1735610738932,0.7634,3343.4,3342.8,2.99149]
[1735610739090,0.7634,3343.4,3342.9,2.9914]
[1735610739830,0.7634,3343.4,3342.3,9.500958]
[1735610740031,0.7634,3343.4,3342.4,4.29854462]
[1735610740188,0.7634,3343.4,3342.8,2.99148]
[1735610741730,0.7544267,3343.4,3342.8,2.99148]
[1735610744135,0.7544267,3343.4,3342.4,10.79854462]
[1735610744340,0.7544267,3343.4,3343.0,2.99132]
[1735610746942,2.72618823,3344.8,3343.1,0.02991173]
[1735610747099,0.7607,3344.5,3343.0,3.290382]
[1735610747300,4.12431805,3344.4,3343.3,2.99103]
[1735610747679,0.7607,3344.2,3343.4,2.99096]
[1735610747974,0.7607,3344.2,3343.7,2.99068]
[1735610748472,0.7607,3344.2,3343.8,2.99052]
[1735610749296,0.7607,3344.2,3343.6,2.99078]
[1735610749499,0.7607,3344.2,3344.1,2.99034]
[1735610750502,0.7607,3344.5,3344.2,2.9902]
[1735610750704,0.8042,3345.0,3344.2,0.02990094]
[1735610750952,0.8042,3345.0,3344.6,2.98987]
[1735610752022,0.8042,3345.0,3344.8,2.98971]
[1735610752203,0.8042,3345.0,3344.1,3.7678]
[1735610752533,0.8042,3345.0,3344.4,2.99006]
[1735610753052,0.8042,3345.0,3344.2,1.12309426]
[1735610753219,0.8042,3345.0,3344.7,2.98975]
[1735610753629,0.8042,3345.0,3344.8,2.98971]
[1735610756888,0.8042,3345.0,3344.6,2.98988]
[1735610757188,0.8042,3345.0,3344.4,2.99006]
[1735610757394,0.8042,3345.0,3344.4,3.17914943]
[1735610758969,0.8042,3345.0,3344.5,2.98997]
[1735610759670,0.8042,3345.0,3344.4,0.18908943]
[1735610759869,0.8042,3345.0,3344.4,3.17914943]
[1735610760073,0.8042,3345.0,3344.5,0.40913857]
[1735610761365,0.8042,3345.0,3344.1,2.99032]
[1735610761692,0.8042,3345.0,3344.2,2.99024]
[1735610765194,0.8042,3345.0,3343.9,2.99052]
[1735610765514,0.8042,3345.0,3343.9,3.0204198]
[1735610765623,0.8042,3345.0,3344.4,2.99006]
[1735610766970,0.8042,3345.0,3344.0,1.32788598]
[1735610767139,0.8042,3345.0,3344.2,2.9902]
[1735610767970,0.8042,3345.0,3344.0,1.32788598]
[1735610768181,0.8042,3345.0,3344.4,2.99007]
[1735610768488,0.7937,3345.6,3344.5,0.02989979]
[1735610768694,0.7937,3345.6,3345.0,2.98952]
[1735610769400,0.7937,3345.6,3344.8,2.98971]
[1735610769529,0.7937,3345.6,3345.2,2.98933]
[1735610771378,0.7937,3345.6,3345.2,2.98934]
[1735610771720,0.7937,3345.6,3345.3,2.98925]
[1735610775182,0.7937,3345.6,3345.2,0.298934]
[1735610776817,0.7937,3345.6,3345.2,2.98932]
[1735610778731,0.7937,3345.6,3344.6,7.2924]
[1735610778943,0.7937,3345.6,3344.8,2.98969]
[1735610779139,0.7937,3345.6,3344.9,0.8222943]
[1735610779353,0.7937,3345.6,3345.3,2.98926]
[1735610781171,0.7937,3345.6,3345.1,2.98943]
[1735610781748,0.7937,3345.6,3345.2,2.98934]
[1735610781958,0.7937,3345.6,3345.3,2.98926]
[1735610782162,0.7937,3345.6,3345.4,2.98917]
[1735610782964,0.756,3346.1,3345.2,0.7514]
[1735610783284,0.756,3346.1,3345.8,2.98881]
[1735610783488,0.756,3346.6,3345.5,0.02988687]
[1735610783643,0.756,3346.6,3346.1,2.98854]
[1735610784046,0.756,3346.6,3345.8,2.98874]
[1735610784286,0.756,3346.6,3346.0,2.98863]
[1735610785364,0.756,3346.5,3345.7,2.98883]
[1735610785560,0.756,3346.4,3345.4,6.5]
[1735610785789,0.756,3346.2,3345.5,2.98907]
[1735610786288,0.756,3346.2,3345.3,2.98925]
[1735610786491,0.756,3346.0,3344.8,6.5]
[1735610786695,0.756,3346.0,3345.1,2.98943]
[1735610786846,0.756,3345.9,3345.1,2.98943]
[1735610787276,0.756,3345.9,3344.8,3.0]
[1735610787455,0.756,3345.9,3345.3,2.98922]
[1735610788878,0.756,3345.9,3345.4,0.0298875]
[1735610789083,0.55,3346.4,3345.4,0.67707275]
[1735610789401,0.91225616,3346.3,3345.6,2.98899]
[1735610790576,0.756,3346.3,3345.2,7.2514]
[1735610790772,0.756,3346.3,3345.8,2.98878]
[1735610790977,0.756,3346.3,3345.5,2.989]
[1735610791304,0.756,3346.3,3345.2,0.7514]
[1735610791505,0.756,3346.3,3345.7,2.98888]
[1735610791660,0.756,3346.3,3345.9,2.98869]
[1735610792191,0.756,3346.3,3345.7,2.98889]
[1735610792486,0.756,3346.3,3345.2,3.74069]
[1735610792694,0.756,3346.3,3345.5,2.98908]
[1735610793001,1.1316,3346.3,3345.6,2.98899]
[1735610793780,0.756,3346.2,3345.4,2.98916]
[1735610795076,0.55,3346.1,3345.1,2.9894]
[1735610795282,0.756,3346.0,3345.1,2.9894]
[1735610799311,0.756,3346.0,3345.2,2.98931]
[1735610799507,0.756,3346.0,3345.3,2.98924]
[1735610800093,0.756,3346.0,3345.1,0.7786]
[1735610800298,0.756,3346.0,3345.4,2.98911]
[1735610800891,0.756,3346.0,3345.5,2.98907]
[1735610801927,0.756,3346.0,3345.1,0.7786]
[1735610802126,0.756,3346.0,3345.7,2.98889]
[1735610803453,0.756,3346.0,3345.3,2.98926]
[1735610803637,0.756,3346.0,3345.5,2.98902]
[1735610803837,0.756,3346.0,3345.6,2.98898]
[1735610805975,0.756,3346.0,3345.1,3.7786]
[1735610806285,0.756,3346.0,3345.2,1.326813]
[1735610806864,0.756,3346.0,3344.9,0.7814]
[1735610807020,0.756,3346.0,3345.3,2.98926]
[1735610807970,0.8231,3345.9,3345.1,2.98943]
[1735610808872,0.55,3345.8,3344.9,2.98961]
[1735610809176,0.8231,3345.3,3344.4,1.24830335]
[1735610809875,0.8231,3345.3,3344.5,2.98995]
[1735610810172,0.8231,3345.3,3344.6,2.98988]
[1735610814584,0.8231,3345.3,3344.7,2.98975]
[1735610819032,0.8231,3345.3,3344.4,2.72618823]
[1735610819232,0.821,3345.7,3345.4,2.98911]
[1735610819384,0.821,3345.7,3345.1,2.98944]
[1735610819597,0.821,3345.7,3345.5,2.98903]
[1735610820202,0.821,3345.7,3345.2,2.98927]
[1735610820523,0.821,3345.7,3345.3,2.98922]
[1735610821103,0.821,3345.7,3345.5,2.98908]
[1735610821847,0.821,3345.7,3344.9,0.7887]
[1735610822001,0.821,3345.7,3345.4,2.98916]
[1735610822937,0.821,3345.7,3344.9,2.98961]
[1735610823144,1.18461805,3345.7,3344.9,2.98961]
[1735610823339,0.821,3345.6,3344.9,2.98961]
[1735610823744,0.821,3345.2,3344.3,2.99007]
[1735610823917,0.821,3345.2,3344.1,1.24830335]
[1735610824121,0.821,3345.2,3344.5,2.98997]
[1735610825530,1.32271211,3345.2,3344.5,2.98997]
[1735610825741,0.7864,3345.1,3344.5,2.98997]
[1735610826048,0.7864,3345.1,3344.0,2.99036]
[1735610826247,0.7864,3345.1,3344.4,2.99003]
[1735610827038,0.7864,3345.1,3344.5,2.98998]
[1735610827444,0.7864,3345.1,3344.2,2.99018]
[1735610828563,0.7864,3345.1,3343.9,3.0]
[1735610828768,0.7864,3345.1,3344.3,2.99007]
[1735610828949,0.7864,3345.1,3344.0,2.99043]
[1735610829160,0.7864,3345.1,3344.4,2.99006]
[1735610833091,0.7864,3345.1,3344.6,2.98988]
[1735610834474,0.7864,3345.1,3344.2,2.99022]
[1735610835311,0.7864,3344.9,3343.6,1.24830335]
[1735610835449,0.55,3344.6,3343.7,2.99069]
[1735610835648,0.7864,3344.5,3343.7,2.99069]
[1735610836084,0.7864,3344.3,3343.3,7.74830335]
[1735610836304,0.7864,3344.1,3343.3,4.23935335]
[1735610836609,0.7864,3344.1,3343.3,1.24830335]
[1735610837009,0.7864,3343.9,3342.9,4.23970335]
[1735610837745,0.7864,3343.9,3342.9,2.9914]
[1735610837956,0.55,3343.8,3342.6,2.99161]
[1735610838249,0.7864,3343.7,3342.6,2.99161]
[1735610838598,0.55,3343.6,3342.6,2.99161]
[1735610838754,0.7864,3343.5,3342.3,0.788158]
[1735610838949,0.7864,3343.5,3342.8,2.99149]
[1735610839165,0.7864,3343.5,3343.2,2.99114]
[1735610839695,0.7864,3343.5,3342.9,2.99135]
[1735610840860,0.7864,3343.5,3343.2,2.99106]
[1735610842894,0.7864,3343.5,3342.9,2.99137]
[1735610843356,0.7864,3343.5,3343.1,2.99122]
[1735610843561,0.7864,3343.5,3342.9,2.99135]
[1735610843861,0.7864,3343.5,3342.6,0.8243]
[1735610844100,0.7864,3343.5,3342.7,2.99159]
[1735610844301,0.7864,3343.5,3342.8,0.02991311]
[1735610844501,0.7864,3343.5,3343.3,2.99104]
[1735610844667,0.7864,3343.5,3342.8,2.9915]
[1735610844668,0.7864,3343.5,3342.8,2.99147]
[1735610845067,0.7864,3343.5,3342.6,3.0]
[1735610845371,0.7864,3343.5,3342.7,2.99159]
[1735610845590,0.7864,3343.5,3343.0,2.99125]
[1735610847338,0.7864,3343.5,3342.8,2.99148]
[1735610848765,0.7864,3343.5,3342.6,2.99166]
[1735610848966,0.7864,3343.5,3342.7,2.99158]
[1735610849208,0.7864,3343.5,3343.0,2.99132]
[1735610853811,0.7864,3343.5,3342.8,2.99149]
[1735610854413,0.7864,3343.5,3343.0,2.99123]
[1735610855415,0.7864,3343.5,3343.3,2.99104]
[1735610856115,5.71606823,3344.7,3342.8,4.414046]
[1735610856116,0.8027,3344.1,3342.9,2.72618823]
[1735610856285,0.8027,3344.1,3343.5,2.9908]
[1735610856491,0.8027,3344.1,3343.5,3.37095]
[1735610857122,0.8027,3344.1,3343.5,0.38015]
[1735610857301,0.8027,3344.1,3343.3,2.99103]
[1735610857637,0.8027,3344.1,3343.3,2.99104]
[1735610859036,0.8027,3344.0,3343.1,2.99117]
[1735610859746,0.8027,3344.0,3342.8,0.598326]
[1735610860052,0.8027,3343.8,3342.8,2.99149]
[1735610860351,1.16631805,3343.8,3342.8,2.99149]
[1735610860642,0.8027,3343.7,3342.8,2.99149]
[1735610863005,0.8027,3343.5,3342.4,0.8107]
[1735610863208,0.8027,3343.5,3342.6,2.99166]
[1735610864047,0.8027,3343.5,3342.7,2.99158]
[1735610864997,0.55,3343.4,3342.5,2.99177]
[1735610865199,0.8027,3343.3,3342.5,2.99177]
[1735610867895,0.8027,3343.3,3342.3,0.03087401]
[1735610868142,0.8027,3343.3,3342.6,2.99161]
[1735610868666,0.8027,3343.3,3342.4,1.0333564]
[1735610868813,0.8027,3343.3,3342.6,2.99167]
[1735610872193,0.8027,3343.3,3342.3,0.000958]
[1735610872499,0.8027,3343.3,3342.9,2.99139]
[1735610872791,0.8027,3343.3,3343.0,2.99131]
[1735610874079,0.8027,3343.3,3342.7,0.8168]
[1735610874254,0.8027,3343.3,3342.8,2.9915]
[1735610874449,0.8027,3343.3,3342.9,2.99138]
[1735610874651,0.8027,3343.3,3343.0,2.9913]
[1735610883180,0.8027,3343.3,3342.7,0.380849]
[1735610883381,0.8027,3343.3,3342.8,2.99149]
[1735610884601,0.8027,3343.3,3342.5,0.8168]
[1735610885139,0.8027,3343.3,3342.3,4.24118135]
[1735610885311,0.8027,3343.3,3342.3,1.24926135]
[1735610885523,0.8027,3343.3,3342.6,2.99164]
[1735610886824,0.7968,3343.1,3342.3,0.000958]
[1735610887122,0.7968,3343.1,3342.3,2.992868]
[1735610887991,0.7968,3343.1,3342.4,2.99186]
[1735610890128,1.2678418,3343.1,3342.3,0.000958]
[1735610890313,0.7968,3343.0,3342.3,0.000958]
[1735610890697,0.7968,3343.0,3342.3,2.992888]
[1735610892526,0.7968,3343.0,3342.3,0.000958]
[1735610892687,0.7968,3343.0,3342.7,2.99158]
[1735610893220,0.7968,3343.0,3342.5,2.99174]
[1735610893579,0.7968,3343.0,3342.3,0.000958]
[1735610893784,0.7968,3343.0,3342.4,0.3752718]
[1735610893985,0.7968,3343.6,3343.0,2.9913]
[1735610894210,0.7968,3343.6,3342.6,2.72618823]
[1735610894633,0.7968,3343.6,3343.1,2.9912]
[1735610895125,0.7968,3343.6,3342.8,2.99142]
[1735610895303,0.7968,3343.4,3342.8,2.99142]
[1735610895913,0.7968,3343.4,3342.5,0.7598]
[1735610896110,0.7968,3343.4,3342.9,2.99139]
[1735610896301,0.7968,3343.4,3342.7,2.99158]
[1735610896513,0.7968,3343.4,3342.5,0.7598]
[1735610896698,0.7968,3343.4,3342.8,2.99144]
[1735610898851,0.7968,3343.4,3342.6,1.34605046]
[1735610899143,0.7968,3343.4,3342.6,2.99168]
[1735610900689,0.7968,3343.4,3342.3,3.752648]
[1735610900889,0.7968,3343.4,3342.3,0.79067214]
[1735610901090,0.7968,3343.4,3342.3,3.51686037]
[1735610901408,0.7968,3343.4,3342.9,2.99136]
[1735610902612,0.7968,3343.4,3342.7,2.99157]
[1735610904647,0.7968,3343.4,3342.8,2.99148]
[1735610913650,0.7968,3343.4,3342.4,7.74830335]
[1735610913848,0.7968,3343.4,3342.6,2.99159]
[1735610914025,0.7968,3343.4,3342.7,2.99154]
[1735610915771,0.7968,3343.4,3342.3,0.000958]
[1735610915772,1.3094,3343.3,3342.4,2.99179]
[1735610916064,0.7594,3343.1,3342.3,0.000958]
[1735610917142,0.55,3343.0,3342.3,0.000958]
[1735610917351,0.55,3342.8,3342.3,0.000958]
[1735610917552,0.7594,3342.7,3342.3,0.000958]
[1735610918619,0.7594,3342.5,3342.3,0.000958]
[1735610921264,1.3094,3342.4,3342.3,0.000958]
[1735610922564,5.07892274,3342.4,3342.3,0.000958]
[1735610923838,6.87892274,3342.4,3342.3,0.000958]
[1735610925040,16.36497532,3342.4,3342.3,0.000958]
[1735610925242,16.39330055,3342.4,3342.3,0.000958]
[1735610925976,0.55,3342.0,3340.1,1.29063365]
[1735610926156,0.55,3341.0,3340.1,1.29063365]
[1735610926328,3.55,3341.0,3340.1,1.29063365]
[1735610926530,0.92691182,3340.9,3340.1,0.0423303]
[1735610926747,2.72618823,3340.8,3340.1,0.0423303]
[1735610926971,0.55,3340.7,3340.1,0.0423303]
[1735610927175,2.99367,3340.4,3340.1,0.0423303]
[1735610927338,1.3094,3340.2,3340.1,0.0423303]
[1735610927545,1.67302145,3340.2,3340.1,0.0423303]
[1735610929375,7.66685145,3340.2,3340.1,0.0423303]
[1735610929792,4.67302145,3340.2,3340.1,0.0423303]
[1735610930156,4.12302145,3340.2,3340.1,0.0423303]
[1735610930387,5.28202358,3340.2,3340.1,0.0423303]
[1735610930761,5.83202358,3340.2,3340.1,0.0423303]
[1735610933601,2.83202358,3340.2,3340.1,0.0423303]
[1735610935566,3.24606487,3340.2,3340.1,0.0423303]
[1735610935750,2.69606487,3340.2,3340.1,0.0423303]
[1735610935953,0.7594,3340.2,3340.1,0.0423303]
[1735610941720,1.67302145,3340.2,3340.1,0.0423303]
[1735610944503,4.66685145,3340.2,3340.1,0.0423303]
[1735610944726,5.08706274,3340.2,3340.1,0.0423303]
[1735610945016,5.24282954,3340.2,3340.1,0.0423303]
[1735610945227,9.33293532,3340.2,3340.1,0.0423303]
[1735610945390,11.13293532,3340.2,3340.1,0.0423303]
[1735610946023,2.72618823,3339.2,3338.3,0.8053]
[1735610946211,2.72618823,3339.2,3338.0,3.80102]
[1735610946212,4.73565145,3339.1,3338.0,3.80102]
[1735610946517,0.55,3338.9,3338.0,3.80102]
[1735610947357,0.55,3338.7,3338.0,0.8053]
[1735610948057,0.74618397,3339.0,3338.0,0.8053]
[1735610948256,0.8272,3339.1,3338.1,2.99571]
[1735610948462,0.55,3339.0,3338.2,2.99557]
[1735610951126,2.35,3339.0,3338.2,2.99557]
[1735610951353,0.8272,3339.1,3338.0,0.8053]
[1735610951537,0.8272,3339.4,3338.6,3.80053]
[1735610952165,1.54571514,3339.4,3338.6,3.80053]
[1735610954675,0.36362145,3339.5,3338.9,2.99498]
[1735610954879,0.8272,3339.6,3338.9,2.99498]
[1735610958382,0.55,3339.5,3338.6,3.80048]
[1735610958710,0.8272,3339.3,3338.6,0.8053]
[1735610959442,0.55,3339.2,3338.6,0.8053]
[1735610959754,0.8272,3339.3,3338.6,2.99524]
[1735610960082,0.8272,3339.3,3338.6,2.99521]
[1735610960391,0.8272,3339.5,3339.0,3.80019]
[1735610960691,2.99394,3340.1,3338.7,0.02995169]
[1735610960692,0.8272,3339.7,3338.7,3.80044]
[1735610960844,0.55,3339.5,3338.7,2.99514]
[1735610961046,1.3772,3339.5,3338.7,2.99514]
[1735610961247,0.8272,3339.5,3338.8,2.99507]
[1735610961556,0.8272,3339.5,3338.7,2.99517]
[1735610961760,1.31181603,3339.5,3338.5,0.8053]
[1735610962067,1.31181603,3339.5,3338.7,2.99509]
[1735610962643,0.8272,3339.5,3338.7,2.99509]
[1735610962960,0.8272,3339.5,3339.0,2.9949]
[1735610964187,0.8272,3339.5,3338.5,3.8006]
[1735610964363,0.8272,3339.5,3338.8,2.99506]
[1735610965276,0.8272,3339.5,3338.9,2.99497]
[1735610966765,0.8272,3339.5,3339.0,3.7599]
[1735610968490,0.8272,3339.5,3338.8,2.99506]
[1735610969495,0.8272,3339.5,3338.9,2.99498]
[1735610969848,0.8272,3339.5,3338.7,0.765]
[1735610970057,1.17382145,3339.7,3338.8,0.02994822]
[1735610970250,0.8102,3340.1,3339.0,0.765]
[1735610970665,2.69010482,3340.1,3339.0,0.765]
[1735610971603,2.69010482,3340.1,3339.3,2.99461]
[1735610972096,2.69010482,3340.1,3339.0,0.765]
[1735610972097,0.8102,3340.1,3339.5,2.99445]
[1735610972393,2.02984805,3340.1,3339.3,2.99462]
[1735610972978,1.17382145,3340.0,3339.2,2.99469]
[1735610973157,0.55,3339.9,3339.0,3.75989]
[1735610973554,0.8102,3339.7,3338.8,2.99507]
[1735610974900,0.8102,3339.7,3338.7,0.765]
[1735610975297,1.87990482,3339.8,3338.9,0.765]
[1735610975593,1.87990482,3339.8,3339.4,2.99451]
[1735610976117,1.87990482,3339.8,3339.1,2.99475]
[1735610976402,0.55,3339.9,3339.1,2.99475]
[1735610976696,2.69010482,3340.0,3339.3,2.99456]
[1735610976995,0.7502,3339.8,3339.0,2.99482]
[1735610977492,0.7502,3339.7,3339.0,2.99482]
[1735610978199,0.7502,3339.7,3338.6,0.7768]
[1735610978200,1.87990482,3339.6,3338.6,0.7768]
[1735610978514,3.10754116,3339.6,3339.0,2.99483]
[1735610980212,1.87990482,3339.5,3339.0,2.99483]
[1735610980774,1.87990482,3339.5,3339.1,2.9948]
[1735610982326,0.7502,3339.3,3338.2,0.7768]
[1735610982531,0.7502,3339.3,3338.5,2.99528]
[1735610984283,1.87990482,3339.1,3338.5,2.99528]
[1735610985373,1.87990482,3339.0,3338.5,2.99528]
[1735610986467,1.87990482,3338.9,3338.6,2.99526]
[1735610987381,1.87990482,3339.0,3338.6,2.99526]
[1735610989333,2.70713538,3339.0,3338.6,2.99526]
[1735610989639,0.82723056,3339.0,3338.6,2.99526]
[1735610990738,1.87990482,3338.9,3338.6,2.99526]
[1735610991090,1.87990482,3338.9,3338.4,2.99544]
[1735610991334,0.7609,3338.8,3338.4,2.99544]
[1735610991527,1.35835751,3338.8,3338.2,3.7724]
[1735610992037,3.23826233,3338.8,3337.9,0.8322]
[1735610992210,2.64080482,3338.8,3338.0,2.99579]
[1735610992615,2.64080482,3338.8,3337.8,2.99597]
[1735610992616,0.7609,3338.6,3337.8,2.99597]
[1735610993014,2.64080482,3338.6,3337.8,2.99597]
[1735610993234,0.9060966,3338.5,3337.8,2.99597]
[1735610993444,0.7609,3338.4,3337.6,3.82834]
[1735610994007,0.7609,3338.4,3338.3,3.82773]
[1735610994008,1.87990482,3338.4,3338.3,3.82773]